Workbook

Sheet Obsah
D4: B2 Vývoj školství na regionální úrovni
D5: Zdroje dat jsou uvedeny v zápatí jednotlivých tabulek
F7: Obsah
D9: Tabulka 1 | F9: ='B2.1'!H4&" "&'B2.1'!D5 -> Regionální školství – školy, děti, žáci, studenti/dívky, ženy ve školním roce 2008/09 až 2018/19 – podle zřizovatele
D11: Tabulka 2 | F11: ='B2.2'!H4&" "&'B2.2'!D5 -> Učitelé MŠ, ZŠ, SŠ, konzervatoří, VOŠ a škol pro žáky se SVP – struktura učitelů v letech 2011 až 2018 – podle nejvyššího dosaženého vzdělání
D13: Tabulka 3 | F13: ='B2.3'!H4&" "&'B2.3'!D5 -> Učitelé MŠ, ZŠ, SŠ, konzervatoří, VOŠ a škol pro žáky se SVP – struktura učitelů v letech 2011 až 2018 – podle věku
D15: Tabulka 4 | F15: ='B2.4'!H4&" "&'B2.4'!D5 -> Regionální školství – výdaje v běžných cenách v letech 2008 až 2018
D17: Tabulka 5 | F17: ='B2.5'!H4&" "&'B2.5'!D5 -> Regionální školství – týdenní rozsah hodin přímé pedagogické činnosti (míra vyučovací povinnosti) učitelů v letech 2004 až 2018
D19: Tabulka 6 | F19: ='B2.6'!H4&" "&'B2.6'!D5 -> Regionální školství – přepočtené počty zaměstnanců v letech 2008 až 2018
D21: Tabulka 7 | F21: ='B2.7'!$H$4&" "&'B2.7'!$D$5 -> Regionální školství – průměrné měsíční mzdy v letech 2008 až 2018
E22: Obrazová příloha
D23: Graf 1 | F23: ='GB1'!$G$4&" "&'GB1'!$D$5 -> Regionální školství – školy ve školním roce 2008/09 až 2018/19 – podle druhu školy
D25: Graf 2 | F25: ='GB2'!$G$4&" "&'GB2'!$D$5 -> Regionální školství – děti/žáci/studenti ve školním roce 2008/09 až 2018/19 – podle druhu školy
D27: Graf 3 | F27: ='GB3'!$H$4&" "&'GB3'!$D$5 -> Regionální školství – děti/žáci/studenti ve školním roce 2008/09 a 2018/19 – podle zřizovatele
D29: Graf 4 | F29: ='GB4'!$G$4&" "&'GB4'!$D$5 -> Regionální školství – všichni zřizovatelé – přepočtené počty zaměstnanců a učitelů, průměrné nominální a reálné mzdy v letech 2008 až 2018

Sheet B2.1
D4: Tab. B2.1: | H4: Regionální školství – školy, děti, žáci, studenti/dívky, ženy
D5: ve školním roce 2008/09 až 2018/19 – podle zřizovatele
D7: Zřizovatel | J7: 2003/04 | K7: 2004/05 | L7: 2005/06 | M7: 2006/07 | N7: 2007/08 | O7: 2008/09 | P7: 2009/10 | Q7: 2010/11 | R7: 2011/12 | S7: 2012/13 | T7: 2013/14 | U7: 2014/15 | V7: 2015/16 | W7: 2016/17 | X7: 2017/18 | Y7: 2018/19
J11: 1) | K11: 1)
D12: Školy
E13: Celkem1) | J13: . | K13: . | L13: 8681 | M13: 8591 | N13: 8541 | O13: 8493 | P13: 8472 | Q13: 8474 | R13: 8490 | S13: 8426 | T13: 8442 | U13: 8475 | V13: 8500 | W13: 8496 | X13: 8557 | Y13: 8558
E14: v tom | F14: veřejný | J14: . | K14: . | L14: 8140 | M14: 8040 | N14: 7978 | O14: 7911 | P14: 7880 | Q14: 7853 | R14: 7843 | S14: 7749 | T14: 7718 | U14: 7695 | V14: 7688 | W14: 7650 | X14: 7655 | Y14: 7634
F15: v tom | G15: MŠMT | J15: . | K15: . | L15: 62 | M15: 62 | N15: 62 | O15: 64 | P15: 64 | Q15: 64 | R15: 64 | S15: 60 | T15: 61 | U15: 60 | V15: 59 | W15: 58 | X15: 59 | Y15: 59
G16: obec | J16: . | K16: . | L16: 6660 | M16: 6613 | N16: 6576 | O16: 6537 | P16: 6516 | Q16: 6506 | R16: 6507 | S16: 6500 | T16: 6489 | U16: 6489 | V16: 6494 | W16: 6466 | X16: 6481 | Y16: 6479
G17: jiný resort | J17: . | K17: . | L17: 9 | M17: 6 | N17: 8 | O17: 8 | P17: 8 | Q17: 8 | R17: 8 | S17: 8 | T17: 6 | U17: 6 | V17: 6 | W17: 5 | X17: 6 | Y17: 6
G18: kraj | J18: . | K18: . | L18: 1409 | M18: 1359 | N18: 1332 | O18: 1302 | P18: 1292 | Q18: 1275 | R18: 1264 | S18: 1181 | T18: 1162 | U18: 1140 | V18: 1129 | W18: 1121 | X18: 1109 | Y18: 1090
F19: privátní sektor | J19: . | K19: . | L19: 448 | M19: 458 | N19: 469 | O19: 484 | P19: 495 | Q19: 522 | R19: 543 | S19: 572 | T19: 617 | U19: 669 | V19: 700 | W19: 733 | X19: 789 | Y19: 809
F20: církev | J20: . | K20: . | L20: 93 | M20: 93 | N20: 94 | O20: 98 | P20: 97 | Q20: 99 | R20: 104 | S20: 105 | T20: 107 | U20: 111 | V20: 112 | W20: 113 | X20: 113 | Y20: 115
D21: Děti/žáci/studenti
E22: Celkem | J22: 1887775 | K22: 1850642 | L22: 1808650 | M22: 1769701 | N22: 1737704 | O22: 1713523 | P22: 1696911 | Q22: 1684376 | R22: 1671275 | S22: 1665679 | T22: 1672036 | U22: 1687998 | V22: 1703238 | W22: 1719487 | X22: 1734063 | Y22: 1747747
E23: v tom | F23: veřejný | J23: 1780215 | K23: 1741851 | L23: 1698818 | M23: 1658083 | N23: 1625603 | O23: 1600200 | P23: 1583325 | Q23: 1575784 | R23: 1569033 | S23: 1567574 | T23: 1574864 | U23: 1588442 | V23: 1601231 | W23: 1613821 | X23: 1624866 | Y23: 1635619
F24: v tom | G24: MŠMT | J24: 3335 | K24: 3251 | L24: 3267 | M24: 3213 | N24: 3323 | O24: 3391 | P24: 3467 | Q24: 3301 | R24: 3182 | S24: 2931 | T24: 2815 | U24: 2763 | V24: 2903 | W24: 2889 | X24: 2813 | Y24: 2911
G25: obec | J25: 1234243 | K25: 1195949 | L25: 1157785 | M25: 1121825 | N25: 1096645 | O25: 1077575 | P25: 1067854 | Q25: 1077462 | R25: 1095653 | S25: 1119660 | T25: 1146572 | U25: 1174507 | V25: 1198133 | W25: 1217638 | X25: 1235311 | Y25: 1248266
G26: jiný resort | J26: 2086 | K26: 1903 | L26: 1502 | M26: 951 | N26: 1226 | O26: 1476 | P26: 1803 | Q26: 1889 | R26: 1853 | S26: 1792 | T26: 1782 | U26: 1690 | V26: 1762 | W26: 1848 | X26: 1941 | Y26: 2045
G27: kraj | J27: 540551 | K27: 540748 | L27: 536264 | M27: 532094 | N27: 524409 | O27: 517758 | P27: 510201 | Q27: 493132 | R27: 468345 | S27: 443191 | T27: 423695 | U27: 409482 | V27: 398433 | W27: 391446 | X27: 384801 | Y27: 382397
F28: privátní sektor | J28: 91687 | K28: 92665 | L28: 93533 | M28: 95009 | N28: 95229 | O28: 96051 | P28: 96285 | Q28: 91105 | R28: 84289 | S28: 79647 | T28: 78203 | U28: 79832 | V28: 81907 | W28: 85082 | X28: 88270 | Y28: 90976
F29: církev | J29: 15873 | K29: 16126 | L29: 16299 | M29: 16609 | N29: 16872 | O29: 17272 | P29: 17301 | Q29: 17487 | R29: 17953 | S29: 18458 | T29: 18969 | U29: 19724 | V29: 20100 | W29: 20584 | X29: 20927 | Y29: 21152
E30: Z toho dívky/ženy | J30: 924356 | K30: 908094 | L30: 886522 | M30: 867709 | N30: 852673 | O30: 841083 | P30: 831991 | Q30: 825353 | R30: 819122 | S30: 816918 | T30: 819363 | U30: 827646 | V30: 835070 | W30: 842251 | X30: 848938 | Y30: 855724
E31: v tom | F31: veřejný | J31: 865022 | K31: 847032 | L31: 824351 | M31: 804425 | N31: 789099 | O31: 776928 | P31: 769193 | Q31: 766073 | R31: 763712 | S31: 764068 | T31: 767296 | U31: 773639 | V31: 779955 | W31: 785329 | X31: 790272 | Y31: 795173
F32: v tom | G32: MŠMT | J32: 1088 | K32: 1090 | L32: 1087 | M32: 1097 | N32: 1100 | O32: 1177 | P32: 1205 | Q32: 1097 | R32: 1078 | S32: 1025 | T32: 957 | U32: 931 | V32: 1011 | W32: 996 | X32: 963 | Y32: 993
G33: obec | J33: 598406 | K33: 579839 | L33: 560695 | M33: 543001 | N33: 531342 | O33: 521692 | P33: 517546 | Q33: 522878 | R33: 532117 | S33: 544631 | T33: 557811 | U33: 571399 | V33: 583241 | W33: 592789 | X33: 601451 | Y33: 607655
G34: jiný resort | J34: 487 | K34: 397 | L34: 332 | M34: 260 | N34: 245 | O34: 297 | P34: 342 | Q34: 367 | R34: 333 | S34: 318 | T34: 343 | U34: 333 | V34: 317 | W34: 348 | X34: 426 | Y34: 517
G35: kraj | J35: 265041 | K35: 265706 | L35: 262237 | M35: 260067 | N35: 256412 | O35: 253762 | P35: 250100 | Q35: 241731 | R35: 230184 | S35: 218094 | T35: 208185 | U35: 200976 | V35: 195386 | W35: 191196 | X35: 187432 | Y35: 186008
F36: privátní sektor | J36: 49362 | K36: 50935 | L36: 51902 | M36: 52902 | N36: 53054 | O36: 53451 | P36: 52081 | Q36: 48477 | R36: 44410 | S36: 41552 | T36: 40501 | U36: 42014 | V36: 43005 | W36: 44504 | X36: 46066 | Y36: 47864
F37: církev | J37: 9972 | K37: 10127 | L37: 10269 | M37: 10382 | N37: 10520 | O37: 10704 | P37: 10717 | Q37: 10803 | R37: 11000 | S37: 11298 | T37: 11566 | U37: 11993 | V37: 12110 | W37: 12418 | X37: 12600 | Y37: 12687
D38: Komentáře: | Y38: Zdroj: databáze MŠMT
D39: 1) | E39: Počet právních subjektů vykonávajících činnost školy.

Sheet B2.2
D4: Tab. B2.2: | H4: Učitelé MŠ, ZŠ, SŠ, konzervatoří, VOŠ a škol pro žáky se SVP – struktura
D5: učitelů v letech 2011 až 2018 – podle nejvyššího dosaženého vzdělání
D7: Nejvyšší dosažené vzdělání | J7: 2006 | K7: 2011 | L7: 2012 | M7: 2013 | N7: 2014 | O7: 2015 | P7: 2016 | Q7: 2017 | R7: 2018
D12: Učitelé (bez ředitelů a zástupců ředitele/řídících pracovníků)
E13: Střední a střední vzdělání s výučním listem | J13: 0.0181741121 | K13: 0.01326969527 | L13: 0.01295039892 | M13: 0.01173249469 | N13: 0.01066828782 | O13: 0.009049954463 | P13: 0.008519902856 | Q13: 0.008124028511 | R13: 0.007873158249
E14: Střední vzdělání s maturitní zkouškou | K14: 0.2695047341 | L14: 0.2672909712 | M14: 0.2635111602 | N14: 0.2517376706 | O14: 0.239054478 | P14: 0.2326001589 | Q14: 0.2278901695 | R14: 0.2235121759
E15: Vyšší odborné vzdělání | K15: 0.03986036861 | L15: 0.04054900851 | M15: 0.0410275821 | N15: 0.04223937496 | O15: 0.04266048894 | P15: 0.04382089379 | Q15: 0.04421930292 | R15: 0.04375881334
E16: Vysokoškolské – bakalářské | J16: 0.3021912926 | K16: 0.03677061465 | L16: 0.03958101086 | M16: 0.04338253531 | N16: 0.04895223402 | O16: 0.0522400237 | P16: 0.05533581685 | Q16: 0.05848639773 | R16: 0.0609649593
E17: Vysokoškolské – magisterské | J17: 0.01132271979 | K17: 0.6321549536 | L17: 0.6306924526 | M17: 0.6310509842 | N17: 0.6373290241 | O17: 0.6475107221 | P17: 0.649835749 | Q17: 0.6509835252 | R17: 0.6530111533
E18: Vysokoškolské – doktorské | J18: 0.6683118755 | K18: 0.008439633814 | L18: 0.008936167675 | M18: 0.009295233752 | N18: 0.009073408431 | O18: 0.009484342454 | P18: 0.009887469148 | Q18: 0.01029657612 | R18: 0.01087973996
R19: Zdroj: databáze MŠMT

Sheet B2.3
D4: Tab. B2.3: | H4: Učitelé MŠ, ZŠ, SŠ, konzervatoří, VOŠ a škol pro žáky se SVP – struktura
D5: učitelů v letech 2011 až 2018 – podle věku
D7: Věk | J7: 2006 | K7: 2011 | L7: 2012 | M7: 2013 | N7: 2014 | O7: 2015 | P7: 2016 | Q7: 2017 | R7: 2018
D12: Učitelé (bez ředitelů a zástupců ředitele/řídících pracovníků)
E13: do 24 let | J13: 0.03282207513 | K13: 0.01751412253 | L13: 0.01701220903 | M13: 0.01638896099 | N13: 0.01752823306 | O13: 0.01761261655 | P13: 0.01734784067 | Q13: 0.01817043187 | R13: 0.01833256607
E14: 25–29 let | K14: 0.07635594341 | L14: 0.0734974798 | M14: 0.07137244379 | N14: 0.06851509615 | O14: 0.06844527319 | P14: 0.06824643382 | Q14: 0.06934297779 | R14: 0.0688306265
E15: 30–34 let | K15: 0.09069984419 | L15: 0.08660848032 | M15: 0.08287211824 | N15: 0.07999313147 | O15: 0.07818801719 | P15: 0.07547683241 | Q15: 0.07159413255 | R15: 0.06968733376
E16: 35–39 let | K16: 0.1224067076 | L16: 0.127226798 | M16: 0.1297831998 | N16: 0.1301660112 | O16: 0.1264675877 | P16: 0.117583386 | Q16: 0.1108068398 | R16: 0.1051746827
E17: 40–44 let | K17: 0.1358842667 | L17: 0.1311540816 | M17: 0.131527599 | N17: 0.1352015795 | O17: 0.1410985575 | P17: 0.148030414 | Q17: 0.1540929329 | R17: 0.1559180891
E18: 45–49 let | J18: 0.1981320863 | K18: 0.1889825012 | L18: 0.1831400667 | M18: 0.1701364222 | N18: 0.1558451586 | O18: 0.1441879716 | P18: 0.1368022899 | Q18: 0.1327838539 | R18: 0.1347335023
E19: 50–54 let | J19: 0.3128766015 | K19: 0.170538317 | L19: 0.1726507326 | M19: 0.1778869927 | N19: 0.1831299961 | O19: 0.1835645328 | P19: 0.1818699431 | Q19: 0.1757929531 | R19: 0.1628693745
E20: 55–59 let | J20: 0.302747599 | K20: 0.1398169334 | L20: 0.1457723033 | M20: 0.1514550366 | N20: 0.1548544869 | O20: 0.1578832175 | P20: 0.1616300593 | Q20: 0.1630243662 | R20: 0.1685151344
E21: 60–64 let | J21: 0.1432984214 | K21: 0.04424313793 | L21: 0.04892158583 | M21: 0.05398217886 | N21: 0.05919094823 | O21: 0.06528398837 | P21: 0.07340627264 | Q21: 0.08067379007 | R21: 0.08861804228
E22: 65 a více let | J22: 0.01012321669 | K22: 0.01355821625 | L22: 0.01401627258 | M22: 0.01459504787 | N22: 0.01557534913 | O22: 0.01726822796 | P22: 0.01960652826 | Q22: 0.02371679547 | R22: 0.02732064844
R23: Zdroj: databáze MŠMT

Sheet B2.4
D4: Tab. B2.4: | H4: Regionální školství – výdaje v běžných cenách
D5: v letech 2008 až 2018
Y6: v tis. Kč
J7: 2003 | K7: 2004 | L7: 2005 | M7: 2006 | N7: 2007 | O7: 2008 | P7: 2009 | Q7: 2010 | R7: 2011 | S7: 2012 | T7: 2013 | U7: 2014 | V7: 2015 | W7: 2016 | X7: 2017 | Y7: 2018
D12: Výdaje na regionální školství z rozpočtů kapitoly 333-MŠMT; kapitoly 700-Obce a DSO, KÚ1)
E13: Celkem | J13: 88719423.2 | K13: 92959097.38 | L13: 95531621.31 | M13: 103098700.1 | N13: =N19+N31+N25 -> 105368849.9 | O13: 109433676.9 | P13: 120051447.6 | Q13: 118543695.7 | R13: 120189926.9 | S13: 118606446.9 | T13: =T19+T31+T25 -> 119727309.6 | U13: =U19+U31+U25 -> 130203528 | V13: =V19+V31+V25 -> 130761114.8 | W13: =W19+W31+W25 -> 128935541.4 | X13: =X19+X31+X25 -> 146282172.3 | Y13: 219776675.9
E14: v tom | F14: neinvestiční výdaje | J14: 82040858.4 | K14: 84577281.35 | L14: 87592340.97 | M14: 92398846.95 | N14: =N20+N26+N32 -> 97025341.28 | O14: 98871269.89 | P14: 105673231.8 | Q14: 105114467.8 | R14: 107893267.7 | S14: 109674112.2 | T14: =T20+T26+T32 -> 109349783.8 | U14: 115459580.8 | V14: 116899895.7 | W14: 120486983 | X14: 134777977.5 | Y14: 189807319
F15: investiční výdaje | J15: 6678564.8 | K15: 8381816.03 | L15: 7939280.34 | M15: 10699853.18 | N15: 8343508.62 | O15: 10562407.03 | P15: 14378215.82 | Q15: 13429227.89 | R15: 12296659.11 | S15: 8932334.636 | T15: 10377525.72 | U15: 14743947.2 | V15: 13861219.13 | W15: 8448558.362 | X15: 11504194.8 | Y15: 29969356.91
E16: v % | F16: neinvestiční výdaje | J16: 0.9247226305 | K16: 0.9098332894 | L16: 0.916893692 | M16: 0.8962173804 | N16: =N14/N13 -> 0.9208161745 | O16: =O14/O13 -> 0.9034812013 | P16: 0.8802328826 | Q16: 0.8867089501 | R16: =R14/R13 -> 0.8976897696 | S16: 0.9246892992 | T16: 0.9133236539 | U16: 0.8867623064 | V16: 0.893995863 | W16: =W14/W13 -> 0.9344745578 | X16: =X14/X13 -> 0.9213561392 | Y16: 0.8636372272
F17: investiční výdaje | J17: 0.07527736948 | K17: 0.09016671059 | L17: 0.08310630795 | M17: 0.1037826196 | N17: =N15/N13 -> 0.07918382547 | O17: =O15/O13 -> 0.09651879867 | P17: 0.1197671174 | Q17: 0.1132910499 | R17: =R15/R13 -> 0.1023102304 | S17: 0.07531070084 | T17: 0.08667634609 | U17: 0.1132376936 | V17: 0.106004137 | W17: =W15/W13 -> 0.06552544218 | X17: =X15/X13 -> 0.07864386082 | Y17: 0.1363627728
D18: Výdaje na regionální školství z rozpočtu kapitoly 333-MŠMT
E19: Celkem | J19: 67305642.53 | K19: 69859440.23 | L19: 72729690.35 | M19: 76156420.43 | N19: 79497225.91 | O19: 82132513.41 | P19: 88396466.66 | Q19: 85135869.57 | R19: =R20+R21 -> 90448214.59 | S19: 90136726.18 | T19: =T20+T21 -> 90492763.3 | U19: 92659141.91 | V19: 95010793.04 | W19: 98864186.81 | X19: 112326043.9 | Y19: 174949493.1
E20: v tom | F20: neinvestiční výdaje | J20: 66716406.41 | K20: 69066812.59 | L20: 72026925.72 | M20: 75554469.66 | N20: 79062285.83 | O20: 81611233.89 | P20: 87913952.1 | Q20: 84879289.09 | R20: 90116536.07 | S20: 90055275.64 | T20: 90287013.7 | U20: 92367817.79 | V20: 94676537.46 | W20: 98434734.18 | X20: 111871931.8 | Y20: 164344404.9
F21: investiční výdaje | J21: 589236.12 | K21: 792627.64 | L21: 702764.63 | M21: 601950.77 | N21: 434940.08 | O21: 521279.52 | P21: 482514.56 | Q21: 256580.48 | R21: 331678.5129 | S21: 81450.53429 | T21: 205749.6 | U21: 291324.1242 | V21: 334255.5794 | W21: 429452.6229 | X21: 454112.1535 | Y21: 10605088.26
E22: v % | F22: neinvestiční výdaje | J22: 0.9912453682 | K22: 0.9886539652 | L22: 0.9903373075 | M22: 0.9920958631 | N22: 0.9945288647 | O22: 0.9936531892 | P22: 0.9945414723 | Q22: 0.9969862235 | R22: =R20/R19 -> 0.9963329457 | S22: 0.9990963668 | T22: 0.9977263419 | U22: 0.9968559592 | V22: 0.9964819199 | W22: =W20/W19 -> 0.9956561356 | X22: =X20/X19 -> 0.9959571962 | Y22: 0.9393820006
F23: investiční výdaje | J23: 0.008754631824 | K23: 0.0113460348 | L23: 0.009662692452 | M23: 0.007904136862 | N23: 0.005471135313 | O23: 0.006346810762 | P23: 0.005458527679 | Q23: 0.003013776465 | R23: =R21/R19 -> 0.003667054285 | S23: 0.0009036331554 | T23: 0.002273658053 | U23: 0.003144040816 | V23: 0.003518080091 | W23: =W21/W19 -> 0.004343864414 | X23: =X21/X19 -> 0.004042803767 | Y23: 0.06061799936
D24: Transfery z kapitoly 333-MŠMT do místních rozpočtů1)
E25: Celkem | J25: -62873585.95 | K25: -65467664.94 | L25: -68546171.83 | M25: -72430196.85 | N25: -75098157.17 | O25: -78469683.45 | P25: -83397045.66 | Q25: -80102122.59 | R25: =R26+R27 -> -84823635.86 | S25: -84756049.61 | T25: -84956879.8 | U25: =U26+U27 -> -86945909.67 | V25: =V26+V27 -> -89266219.72 | W25: =W26+W27 -> -93576750.54 | X25: =X26+X27 -> -106254453.3 | Y25: -120882985.4
E26: v tom | F26: neinvestiční | J26: -62788596.86 | K26: -65433125.76 | L26: -68474409.01 | M26: -72362645.73 | N26: -75090241.69 | O26: -78252961.46 | P26: -83342793.92 | Q26: -80084782.18 | R26: -84724903.78 | S26: -84740360.17 | T26: -84956879.8 | U26: -86336160.6 | V26: -89044880.83 | W26: -93257808.47 | X26: -105859376 | Y26: -119998517
F27: investiční | J27: -84989.09 | K27: -34539.18 | L27: -71762.82 | M27: -67551.12 | N27: -7915.48 | O27: -216721.99 | P27: -54251.74 | Q27: -17340.41 | R27: -98732.0894 | S27: -15689.43805 | T27: 0 | U27: -609749.0637 | V27: -221338.8943 | W27: -318942.0634 | X27: -395077.3111 | Y27: -884468.3901
E28: v % | F28: neinvestiční | J28: 0.9986482545 | K28: 0.9994724238 | L28: 0.9989530733 | M28: 0.9990673625 | N28: 0.9998945982 | O28: 0.9972381437 | P28: 0.9993494765 | Q28: 0.9997835212 | R28: =R26/R25 -> 0.9988360309 | S28: 0.9998148871 | T28: 1 | U28: 0.9929870299 | V28: 0.997520463 | W28: =W26/W25 -> 0.9965916527 | X28: =X26/X25 -> 0.9962817811 | Y28: 0.9926832681
F29: investiční | J29: 0.00135174555 | K29: 0.0005275761711 | L29: 0.001046926737 | M29: 0.0009326375316 | N29: 0.0001054017875 | O29: 0.002761856305 | P29: 0.0006505235236 | Q29: 0.0002164787828 | R29: =R27/R25 -> 0.00116396908 | S29: 0.000185112899 | T29: 0 | U29: 0.007012970087 | V29: 0.002479536996 | W29: =W27/W25 -> 0.003408347283 | X29: =X27/X25 -> 0.00371821885 | Y29: 0.007316731857
D30: Výdaje na regionální školství z rozpočtu kapitoly 700-Obce a DSO, KÚ
E31: Celkem | J31: 84287366.62 | K31: 88567322.09 | L31: 91348102.79 | M31: 99372476.55 | N31: =N32+N33 -> 100969781.2 | O31: =O32+O33 -> 105770847 | P31: 115052026.6 | Q31: =Q32+Q33 -> 113509948.7 | R31: =R32+R33 -> 114565348.1 | S31: 113225770.3 | T31: 114191426.1 | U31: =U32+U33 -> 124490295.7 | V31: =V32+V33 -> 125016541.5 | W31: =W32+W33 -> 123648105.1 | X31: =X32+X33 -> 140210581.6 | Y31: 165710168.2
E32: v tom | F32: neinvestiční výdaje | J32: 78113048.85 | K32: 80943594.52 | L32: 84039824.26 | M32: 89207023.02 | N32: =93053729.65-1.02-431.49 -> 93053297.14 | O32: =95514531.99-36.78-1497.75 -> 95512997.46 | P32: 101102073.6 | Q32: 100319960.8 | R32: 102501635.4 | S32: 104359196.7 | T32: 104019649.9 | U32: 109427923.6 | V32: 111268239 | W32: 115310057.3 | X32: 128765421.6 | Y32: 145461431.1
F33: investiční výdaje | J33: 6174317.77 | K33: 7623727.57 | L33: 7308278.53 | M33: 10165453.53 | N33: 7916484.02 | O33: 10257849.5 | P33: 13949953 | Q33: 13189987.82 | R33: 12063712.69 | S33: 8866573.54 | T33: 10171776.12 | U33: 15062372.14 | V33: 13748302.44 | W33: 8338047.803 | X33: 11445159.95 | Y33: 20248737.04
E34: v % | F34: neinvestiční výdaje | J34: 0.9267468184 | K34: 0.9139216656 | L34: 0.9199952894 | M34: 0.8977035304 | N34: 0.8980076686 | O34: 0.8557791218 | P34: 0.8297943315 | Q34: 0.8837924063 | R34: =R32/R31 -> 0.8947001612 | S34: 0.9216912058 | T34: 0.9109234689 | U34: 0.8790076604 | V34: 0.8900281332 | W34: =W32/W31 -> 0.9325663115 | X34: =X32/X31 -> 0.9183716391 | Y34: 0.8778063093
F35: investiční výdaje | J35: 0.07325318156 | K35: 0.08607833443 | L35: 0.08000471063 | M35: 0.1022964696 | N35: 0.1019923314 | O35: 0.1442208782 | P35: 0.1702056685 | Q35: 0.1162075937 | R35: =R33/R31 -> 0.1052998388 | S35: 0.07830879417 | T35: 0.08907653114 | U35: 0.1209923396 | V35: 0.1099718668 | W35: =W33/W31 -> 0.06743368849 | X35: =X33/X31 -> 0.08162836088 | Y35: 0.1221936907
D36: Podíl výdajů na regionální školství na celkových výdajích na školství z rozpočtu MŠMT; Obce a DSO, KÚ a podíl na HDP
E37: Výdaje na školství celkem2),3) | J37: 114.2477725 | K37: 121.3480397 | L37: 128.5541745 | M37: 141.2484394 | N37: 151.5849897 | O37: 149.7997268 | P37: 162.803504 | Q37: 161.8748019 | R37: 172.7687959 | S37: 170.3742654 | T37: 171.7249628 | U37: 177.5906341 | V37: 181.6089812 | W37: 172.2724 | X37: 193.6421335 | Y37: 221.5025808
E38: Podíl výdajů na RgŠ na celkových výdajích | J38: =J13/1000000/J37 -> 0.7765527612 | K38: 0.7660535566 | L38: 0.7431234473 | M38: 0.729910366 | N38: 0.695114009 | O38: 0.7305332209 | P38: 0.7374008832 | Q38: 0.7323171626 | R38: =R13/1000000/R37 -> 0.6956691817 | S38: 0.6961523593 | T38: 0.6972038756 | U38: 0.7331666371 | V38: 0.7200145824 | W38: =W13/1000000/W37 -> 0.7484399206 | X38: =X13/1000000/X37 -> 0.7554253281 | Y38: =Y13/1000000/Y37 -> 0.992208195
E39: HDP v běžných cenách v mld. Kč | J39: 2688.107 | K39: 3057.66 | L39: 3257.972 | M39: 3507.131 | N39: 3840.117 | O39: 4024.117 | P39: 3930.409 | Q39: 3962.464 | R39: 4033.755 | S39: 4059.912 | T39: 4098.128 | U39: 4313.789 | V39: 4595.783 | W39: 4773.24 | X39: 5055.029 | Y39: 5408.766
E40: Výdaje na RgŠ v % HDP | J40: =J13/1000000/J39 -> 0.03300442401 | K40: 0.03040203861 | L40: 0.02932241938 | M40: 0.02939687743 | N40: 0.02743896863 | O40: 0.02719445705 | P40: 0.03054426337 | Q40: 0.02991666187 | R40: =R13/1000000/R39 -> 0.02979604038 | S40: 0.02921404377 | T40: 0.02921512202 | U40: 0.03018310074 | V40: 0.02845241274 | W40: =W13/1000000/W39 -> 0.02701216394 | X40: =X13/1000000/X39 -> 0.02893794917 | Y40: =Y13/1000000/Y39 -> 0.04063342284
D41: Komentáře: | Y41: Zdroj: Státní závěrečný účet, ZÚ – kapitola 333-MŠMT; 700-Obce a DSO, KÚ; ČSÚ; monitor.statnipokladna.cz
D42: 1) | E42: Výdaje (za část 31–32–vzdělávání) neobsahují finanční prostředky určené na mezinárodní spolupráci (paragraf RS 3291).
D43: 2) | E43: Od roku 2004 celkové výdaje kapitoly 333-MŠMT a kapitoly 700-Obce a DSO; KÚ. Nejsou zahrnuty výdaje Ministerstva obrany.
D44: 3) | E44: Meziroční snížení výdajů v roce 2008 je dáno aplikací zákona č. 26/2008 Sb. a z něj vyplývajícím nepřeváděním nevyčerpaných prostředků OSS do rezervních fondů, a tudíž jejich nezahrnutím do čerpání.

Sheet B2.5
D4: Tab. B2.5: | H4: Regionální školství – týdenní rozsah hodin přímé pedagogické činnosti
D5: (míra vyučovací povinnosti) učitelů v letech 2004 až 2018
K6: hod/týdně
J7: 20041) | K7: 2004–20182)
E12: MŠ včetně speciálních | J12: 31 | K12: 31
E13: ZŠ včetně speciálních škol – 1. stupeň | J13: 22 | K13: 20–22
E14: ZŠ včetně speciálních škol – 2. stupeň a nižší ročníky víceletých G | J14: 22 | K14: 22
E15: SŠ včetně speciálních, konzervatoře a VOŠ | J15: 21 | K15: 21
D16: Komentáře: | K16: Zdroj: databáze MŠMT
D17: 1) | E17: NV č. 153/1999 Sb., kterým se mění NV č. 68/1997 Sb., kterou se stanoví míra vyučovací povinnosti učitelů a míra povinnosti výchovné práce ostatních pedagogických pracovníků ve školství, a NV č. 400/2002 Sb., kterým se mění NV č. 68/1997 Sb., ve znění NV č. 153/99 Sb.
D18: 2) | E18: Zákon č. 563/2004 Sb., o pedagogických pracovnících a o změně některých zákonů, a NV č. 273/2009 Sb., kterým se mění NV č. 75/2005 Sb., o stanovení rozsahu přímé vyučovací, přímé výchovné, přímé speciálně pedagogické a přímé pedagogicko-psychologické činnosti pedagogických pracovníků.

Sheet B2.6
D4: Tab. B2.6: | H4: Regionální školství – přepočtené počty zaměstnanců
D5: v letech 2008 až 2018
J7: 2003 | K7: 2004 | L7: 2005 | M7: 2006 | N7: 2007 | O7: 2008 | P7: 2009 | Q7: 2010 | R7: 2011 | S7: 2012 | T7: 2013 | U7: 2014 | V7: 2015 | W7: 2016 | X7: 2017 | Y7: 2018
D12: Všichni zřizovatelé (bez jiných resortů)
E13: Zaměstnanci celkem | J13: 244248.254 | K13: 241290.158 | L13: 238113.3 | M13: 236084.974 | N13: 234899.479 | O13: 233315.317 | P13: 232614.73 | Q13: 233147.791 | R13: 231528.716 | S13: 229787.503 | T13: 229649.459 | U13: 231920.141 | V13: 235149.154 | W13: 238449.134 | X13: 246237.879 | Y13: 253506.6341
F14: z toho učitelé1) | J14: 137976.42 | K14: 136572.796 | L14: 137676.685 | M14: 133792.546 | N14: 132876.324 | O14: 131875.706 | P14: 131449.141 | Q14: 131867.996 | R14: 132046.231 | S14: 131718.656 | T14: 131368.384 | U14: 131912.936 | V14: 132950.685 | W14: 133582.202 | X14: 135609.438 | Y14: 137773.4221
D15: Komentáře: | Y15: Zdroj: databáze MŠMT
D16: 1) | E16: Včetně vedoucích zaměstnanců.

Sheet B2.7
D4: Tab. B2.7: | H4: Regionální školství – průměrné měsíční mzdy
D5: v letech 2008 až 2018
J7: 2003 | K7: 2004 | L7: 2005 | M7: 2006 | N7: 2007 | O7: 2008 | P7: 2009 | Q7: 2010 | R7: 2011 | S7: 2012 | T7: 2013 | U7: 2014 | V7: 2015 | W7: 2016 | X7: 2017 | Y7: 2018
D12: Všichni zřizovatelé (bez jiných resortů)
D13: Nominální mzda (v běžných cenách)
E14: Zaměstnanci celkem | J14: 15708 | K14: 16699 | L14: 17712.68059 | M14: 18787 | N14: 19842 | O14: 20519.08244 | P14: 21890.62531 | Q14: 21457.94822 | R14: 22059.45331 | S14: 22600.39345 | T14: 22736.16042 | U14: 23105.29882 | V14: 23637.34732 | W14: 24814.03037 | X14: 26608.58184 | Y14: 29476
F15: z toho učitelé1) | J15: 18658 | K15: 19996 | L15: 21305.7627 | M15: 22598 | N15: 23858 | O15: 24661.29824 | P15: 26006.02578 | Q15: 25150.82918 | R15: 26011.55277 | S15: 26654.32859 | T15: 26815.83277 | U15: 27261.21271 | V15: 27969.26479 | W15: 29487.40448 | X15: 31631.63967 | Y15: 35088.9
D16: Reálná mzda (ve stálých cenách roku 2015)
E17: Zaměstnanci celkem | J17: =J14/J$20*100 -> 16448.16754 | K17: =K14/K$20*100 -> 17022.4261 | L17: 17712.68059 | M17: 22634.93976 | N17: 23261.43025 | O17: 22623.02364 | P17: 23872.00143 | Q17: 23073.0626 | R17: =R14/R$20*100 -> 23269.46551 | S17: 23085.18228 | T17: 22896.43547 | U17: 23174.82329 | V17: 23637.34732 | W17: 24641.53959 | X17: 25808.51779 | Y17: 27992.40266
F18: z toho učitelé | J18: =J15/J$20*100 -> 19537.17277 | K18: =K15/K$20*100 -> 20383.28236 | L18: 21305.7627 | M18: 27226.50602 | N18: 27969.51934 | O18: 27189.96498 | P18: 28359.89725 | Q18: 27043.90235 | R18: 27438.3468 | S18: 27226.07619 | T18: 27004.86684 | U18: 27343.24244 | V18: 27969.26479 | W18: 29282.42749 | X18: 30680.54284 | Y18: 33322.79202
D19: Index spotřebitelských cen a meziroční inflace
E20: Index spotřebitelských cen (rok 2015 = 100) | J20: 95.5 | K20: 98.1 | L20: 100 | M20: 83 | N20: 85.3 | O20: 90.7 | P20: 91.7 | Q20: 93 | R20: 94.8 | S20: 97.9 | T20: 99.3 | U20: 99.7 | V20: 100 | W20: 100.7 | X20: 103.1 | Y20: 105.3
E21: Meziroční inflace | J21: 0.001 | K21: 0.028 | L21: 0.019 | M21: 0.025 | N21: 0.028 | O21: 0.063 | P21: 0.01 | Q21: 0.015 | R21: 0.019 | S21: 0.033 | T21: 0.014 | U21: 0.004 | V21: 0.003 | W21: 0.007 | X21: 0.025 | Y21: 0.021
D22: Komentáře: | Y22: Zdroj: databáze MŠMT, ČSÚ
D23: 1) | E23: Včetně vedoucích zaměstnanců.

Sheet GB1
D4: Obr. B1: | G4: Regionální školství – školy ve školním roce 2008/09 až 2018/19 – podle druhu školy
J10: 2003/04 | K10: 2004/05 | L10: 2005/06 | M10: 2007/08 | N10: 2008/09 | O10: 2009/10 | P10: 2010/11 | Q10: 2011/12 | R10: 2012/13 | S10: 2013/14 | T10: 2014/15 | U10: 2015/16 | V10: 2016/17 | W10: 2017/18 | X10: 2018/19
I11: MŠ | J11: 5067 | K11: 4994 | L11: 4834 | M11: 4808 | N11: 4809 | O11: 4826 | P11: 4880 | Q11: 4931 | R11: 5011 | S11: 5085 | T11: 5158 | U11: 5209 | V11: 5209 | W11: 5269 | X11: 5287
I12: ZŠ | J12: 4838 | K12: 4765 | L12: 4474 | M12: 4155 | N12: 4133 | O12: 4125 | P12: 4123 | Q12: 4111 | R12: 4095 | S12: 4095 | T12: 4106 | U12: 4115 | V12: 4140 | W12: 4155 | X12: 4172
I13: SŠ | J13: 2006 | K13: 1966 | L13: 2004 | M13: 1447 | N13: 1438 | O13: 1433 | P13: 1423 | Q13: 1393 | R13: 1347 | S13: 1331 | T13: 1310 | U13: 1304 | V13: 1307 | W13: 1308 | X13: 1290
I14: Konzervatoře | J14: 17 | K14: 17 | L14: 17 | M14: 19 | N14: 18 | O14: 17 | P14: 18 | Q14: 18 | R14: 18 | S14: 18 | T14: 18 | U14: 18 | V14: 18 | W14: 18 | X14: 18
I15: VOŠ | J15: 169 | K15: 174 | L15: 176 | M15: 177 | N15: 184 | O15: 184 | P15: 182 | Q15: 180 | R15: 178 | S15: 174 | T15: 174 | U15: 171 | V15: 168 | W15: 166 | X15: 166
X33: Zdroj: databáze MŠMT

Sheet GB2
D4: Obr. B2: | G4: Regionální školství – děti/žáci/studenti ve školním roce 2008/09 až 2018/19 – podle druhu školy
J10: 2003/04 | K10: 2004/05 | L10: 2005/06 | M10: 2007/08 | N10: 2008/09 | O10: 2009/10 | P10: 2010/11 | Q10: 2011/12 | R10: 2012/13 | S10: 2013/14 | T10: 2014/15 | U10: 2015/16 | V10: 2016/17 | W10: 2017/18 | X10: 2018/19
I11: MŠ | J11: 286340 | K11: 286230 | L11: 282183 | M11: 291194 | N11: 301620 | O11: 314008 | P11: 328612 | Q11: 342521 | R11: 354340 | S11: 363568 | T11: 367603 | U11: 367361 | V11: 362653 | W11: 362756 | X11: 363776
I12: ZŠ | J12: 998026 | K12: 958203 | L12: 916575 | M12: 844863 | N12: 816015 | O12: 794459 | P12: 789486 | Q12: 794642 | R12: 807950 | S12: 827654 | T12: 854137 | U12: 880251 | V12: 906188 | W12: 926108 | X12: 940928
I13: SŠ | J13: 576615 | K13: 579505 | L13: 577605 | M13: 569267 | N13: 564326 | O13: 556260 | P13: 532918 | Q13: 501220 | R13: 470754 | S13: 448792 | T13: 435542 | U13: 427107 | V13: 425138 | W13: 421535 | X13: 420814
I14: Konzervatoře | J14: 3543 | K14: 3505 | L14: 3495 | M14: 3606 | N14: 3535 | O14: 3435 | P14: 3560 | Q14: 3557 | R14: 3655 | S14: 3690 | T14: 3752 | U14: 3733 | V14: 3795 | W14: 3781 | X14: 3813
I15: VOŠ | J15: 30681 | K15: 29759 | L15: 28792 | M15: 28774 | N15: 28027 | O15: 28749 | P15: 29800 | Q15: 29335 | R15: 28980 | S15: 28332 | T15: 26964 | U15: 24786 | V15: 22002 | W15: 19883 | X15: 18416
X33: Zdroj: databáze MŠMT

Sheet GB3
D4: Obr. B3: | H4: Regionální školství – děti/žáci/studenti ve školním roce 2008/09 a 2018/19 – podle zřizovatele
K10: 2008/09 | N10: 2018/19
J11: veřejný | K11: 1600200 | M11: veřejný | N11: 1635619
J12: privátní sektor | K12: 96051 | M12: privátní sektor | N12: 90976
J13: církev | K13: 17272 | M13: církev | N13: 21152
K14: 1713523 | N14: 1747747
R26: Zdroj: databáze MŠMT

Sheet GB4
D4: Obr. B4: | G4: Regionální školství – všichni zřizovatelé – přepočtené počty zaměstnanců a učitelů,
D5: průměrné nominální a reálné mzdy v letech 2008 až 2018
I10: Pracovníci
J11: 2003 | K11: 2004 | L11: 2005 | M11: 2007 | N11: 2008 | O11: 2009 | P11: 2010 | Q11: 2011 | R11: 2012 | S11: 2013 | T11: 2014 | U11: 2015 | V11: 2016 | W11: 2017 | X11: 2018
I12: nominální mzdy | J12: 15708 | K12: 16699 | L12: 17712.68059 | M12: 19842 | N12: 20519.08244 | O12: 21890.62531 | P12: 21457.94822 | Q12: 22059.45331 | R12: 22600.39345 | S12: 22736.16042 | T12: 23105.29882 | U12: 23637.34732 | V12: 24814.03037 | W12: 26608.58184 | X12: ='B2.7'!Y14 -> 29476
I13: reálné mzdy | J13: 16448.16754 | K13: 17022.4261 | L13: 17712.68059 | M13: 23261.43025 | N13: 22623.02364 | O13: 23872.00143 | P13: 23073.0626 | Q13: 23269.46551 | R13: 23085.18228 | S13: 22896.43547 | T13: 23174.82329 | U13: 23637.34732 | V13: 24641.53959 | W13: 25808.51779 | X13: ='B2.7'!Y17 -> 27992.40266
I14: počty | J14: 244.248254 | K14: 241.290158 | L14: 238.1133 | M14: 234.899479 | N14: 233.315317 | O14: 232.61473 | P14: 233.147791 | Q14: 231.528716 | R14: 229.787503 | S14: 229.649459 | T14: 231.920141 | U14: 235.149154 | V14: 238.449134 | W14: 246.237879 | X14: ='B2.6'!Y13/1000 -> 253.5066341
I16: Učitelé
J17: 2003 | K17: 2004 | L17: 2005 | M17: 2007 | N17: 2008 | O17: 2009 | P17: 2010 | Q17: 2011 | R17: 2012 | S17: 2013 | T17: 2014 | U17: 2015 | V17: 2016 | W17: 2017 | X17: 2018
I18: nominální mzdy | J18: 18658 | K18: 19996 | L18: 21305.7627 | M18: 23858 | N18: 24661.29824 | O18: 26006.02578 | P18: 25150.82918 | Q18: 26011.55277 | R18: 26654.32859 | S18: 26815.83277 | T18: 27261.21271 | U18: 27969.26479 | V18: 29487.40448 | W18: 31631.63967 | X18: ='B2.7'!Y15 -> 35088.9
I19: reálné mzdy | J19: 19537.17277 | K19: 20383.28236 | L19: 21305.7627 | M19: 27969.51934 | N19: 27189.96498 | O19: 28359.89725 | P19: 27043.90235 | Q19: 27438.3468 | R19: 27226.07619 | S19: 27004.86684 | T19: 27343.24244 | U19: 27969.26479 | V19: 29282.42749 | W19: 30680.54284 | X19: ='B2.7'!Y18 -> 33322.79202
I20: počty | J20: 137.97642 | K20: 136.572796 | L20: 137.676685 | M20: 132.876324 | N20: 131.875706 | O20: 131.449141 | P20: 131.867996 | Q20: 132.046231 | R20: 131.718656 | S20: 131.368384 | T20: 131.912936 | U20: 132.950685 | V20: 133.582202 | W20: 135.609438 | X20: ='B2.6'!Y14/1000 -> 137.7734221
D52: Komentáře: | W52: Zdroj: databáze MŠMT
E53: Průměrná reálná měsíční mzda ve stálých cenách roku 2015.
D54: 1) | E54: Učitelé včetně vedoucích zaměstnanců.
